[Event "Senior Men Russian Championship 2022_HL"]
[Site "Saint-Petersburg, Russia"]
[Date "2022.10.02"]
[Round "9.9"]
[White "Mamoshin, Valery"]
[Black "Nikitinyh, Boris"]
[Result "0-1"]
[TimeControl "40+30"]
[WhiteElo "2203"]
[BlackElo "1853"]

1. e4 {[%clk 01:30:54]} {[%emt 00:00:05]} d6 {[%clk 01:30:48]} {[%emt
00:00:13]} 2. d4 {[%clk 01:31:15]} {[%emt 00:00:09]} Nf6 {[%clk 01:31:06]}
{[%emt 00:00:11]} 3. Nc3 {[%clk 01:31:44]} {[%emt 00:00:02]} g6 {[%clk
01:31:19]} {[%emt 00:00:17]} 4. Be2 {[%clk 01:32:08]} {[%emt 00:00:06]} Bg7
{[%clk 01:31:07]} {[%emt 00:00:42]} 5. Be3 {[%clk 01:32:27]} {[%emt 00:00:10]}
Nc6 {[%clk 01:28:35]} {[%emt 00:03:02]} 6. d5 {[%clk 01:30:46]} {[%emt
00:02:11]} Ne5 {[%clk 01:28:44]} {[%emt 00:00:22]} 7. f4 {[%clk 01:25:35]}
{[%emt 00:05:40]} Ned7 {[%clk 01:27:40]} {[%emt 00:01:35]} 8. g4 {[%clk
01:23:01]} {[%emt 00:03:03]} h6 {[%clk 01:25:00]} {[%emt 00:03:10]} 9. h3
{[%clk 01:18:25]} {[%emt 00:05:06]} c6 {[%clk 01:23:19]} {[%emt 00:02:11]} 10.
Bf3 {[%clk 01:07:51]} {[%emt 00:11:04]} Qc7 {[%clk 01:12:52]} {[%emt 00:10:58]}
11. Nge2 {[%clk 01:04:17]} {[%emt 00:04:03]} a6 {[%clk 01:11:03]} {[%emt
00:02:20]} 12. Qd2 {[%clk 01:02:37]} {[%emt 00:02:09]} g5 {[%clk 01:10:39]}
{[%emt 00:00:54]} 13. dxc6 {[%clk 00:59:43]} {[%emt 00:03:24]} bxc6 {[%clk
01:09:08]} {[%emt 00:02:01]} 14. e5 {[%clk 00:49:07]} {[%emt 00:11:06]} gxf4
{[%clk 01:04:40]} {[%emt 00:04:58]} 15. Bxf4 {[%clk 00:48:28]} {[%emt
00:01:09]} Nxe5 {[%clk 01:04:35]} {[%emt 00:00:35]} 16. Bxe5 {[%clk 00:46:17]}
{[%emt 00:02:41]} dxe5 {[%clk 01:04:51]} {[%emt 00:00:14]} 17. O-O-O {[%clk
00:45:00]} {[%emt 00:01:47]} Be6 {[%clk 01:03:26]} {[%emt 00:01:55]} 18. Ne4
{[%clk 00:43:02]} {[%emt 00:02:28]} Nxe4 {[%clk 00:59:50]} {[%emt 00:04:07]} 19.
Bxe4 {[%clk 00:43:29]} {[%emt 00:00:02]} Bf6 {[%clk 00:59:54]} {[%emt
00:00:26]} 20. Qc3 {[%clk 00:42:35]} {[%emt 00:01:24]} Rc8 {[%clk 00:59:07]}
{[%emt 00:01:18]} 21. Ng3 {[%clk 00:42:19]} {[%emt 00:00:45]} O-O {[%clk
00:54:31]} {[%emt 00:05:06]} 22. h4 {[%clk 00:39:47]} {[%emt 00:03:02]} Rfd8
{[%clk 00:52:33]} {[%emt 00:02:28]} 23. Rdg1 {[%clk 00:36:10]} {[%emt
00:04:07]} Kf8 {[%clk 00:52:21]} {[%emt 00:00:43]} 24. Nh5 {[%clk 00:24:25]}
{[%emt 00:12:15]} Rd4 {[%clk 00:50:07]} {[%emt 00:02:43]} 25. Bf5 {[%clk
00:22:58]} {[%emt 00:01:57]} Bxf5 {[%clk 00:44:38]} {[%emt 00:06:00]} 26. Nxf6
{[%clk 00:23:01]} {[%emt 00:00:27]} Be6 {[%clk 00:43:57]} {[%emt 00:01:09]} 27.
Qc5 {[%clk 00:19:41]} {[%emt 00:03:51]} Qd6 {[%clk 00:42:43]} {[%emt 00:01:44]}
28. Qxd6 {[%clk 00:19:00]} {[%emt 00:01:11]} Rxd6 {[%clk 00:42:54]} {[%emt
00:00:20]} 29. Nh5 {[%clk 00:18:41]} {[%emt 00:00:49]} Rd4 {[%clk 00:42:37]}
{[%emt 00:00:47]} 30. g5 {[%clk 00:19:08]} {[%emt 00:00:02]} hxg5 {[%clk
00:42:38]} {[%emt 00:00:30]} 31. hxg5 {[%clk 00:19:05]} {[%emt 00:00:31]} Ke8
{[%clk 00:42:26]} {[%emt 00:00:42]} 32. Ng7+ {[%clk 00:18:34]} {[%emt
00:01:02]} Kd7 {[%clk 00:42:42]} {[%emt 00:00:14]} 33. c3 {[%clk 00:16:51]}
{[%emt 00:02:13]} Rg4 {[%clk 00:42:16]} {[%emt 00:00:56]} 34. Rxg4 {[%clk
00:14:18]} {[%emt 00:03:03]} Bxg4 {[%clk 00:42:15]} {[%emt 00:00:30]} 35. Rf1
{[%clk 00:14:14]} {[%emt 00:00:34]} Rf8 {[%clk 00:41:20]} {[%emt 00:01:26]} 36.
g6 {[%clk 00:12:25]} {[%emt 00:02:19]} f6 {[%clk 00:41:32]} {[%emt 00:00:19]}
37. Rg1 {[%clk 00:12:15]} {[%emt 00:00:39]} Rg8 {[%clk 00:41:44]} {[%emt
00:00:19]} 38. Rxg4 {[%clk 00:12:20]} {[%emt 00:00:24]} Rxg7 {[%clk 00:41:59]}
{[%emt 00:00:15]} 39. Ra4 {[%clk 00:12:14]} {[%emt 00:00:36]} Rxg6 {[%clk
00:42:18]} {[%emt 00:00:11]} 40. Rxa6 {[%clk 00:42:39]} {[%emt 00:00:06]} Rg1+
{[%clk 01:11:48]} {[%emt 00:00:59]} 41. Kc2 {[%clk 00:43:07]} {[%emt 00:00:02]}
Rg2+ {[%clk 01:12:04]} {[%emt 00:00:14]} 42. Kb3 {[%clk 00:43:26]} {[%emt
00:00:10]} f5 {[%clk 01:12:14]} {[%emt 00:00:21]} 43. Ra7+ {[%clk 00:41:40]}
{[%emt 00:02:16]} Ke6 {[%clk 01:12:00]} {[%emt 00:00:44]} 44. a4 {[%clk
00:41:32]} {[%emt 00:00:37]} e4 {[%clk 01:12:02]} {[%emt 00:00:29]} 45. Kc4
{[%clk 00:40:19]} {[%emt 00:01:42]} e3 {[%clk 01:12:02]} {[%emt 00:00:31]} 46.
Kd3 {[%clk 00:40:43]} {[%emt 00:00:06]} f4 {[%clk 01:12:05]} {[%emt 00:00:27]}
0-1

[Event "Senior Men Russian Championship 2022_HL"]
[Site "Saint-Petersburg, Russia"]
[Date "2022.10.02"]
[Round "9.11"]
[White "Berlin, Grigoriy"]
[Black "Yakovlev, Yuri S."]
[Result "1-0"]
[TimeControl "40+30"]
[WhiteElo "2186"]
[BlackElo "1649"]

1. Nf3 {[%clk 01:30:54]} {[%emt 00:00:05]} b5 {[%clk 01:30:48]} {[%emt
00:00:13]} 2. d4 {[%clk 01:31:14]} {[%emt 00:00:10]} e6 {[%clk 01:30:41]}
{[%emt 00:00:36]} 3. Bf4 {[%clk 01:31:27]} {[%emt 00:00:17]} Bb7 {[%clk
01:30:58]} {[%emt 00:00:12]} 4. e3 {[%clk 01:31:39]} {[%emt 00:00:19]} a6
{[%clk 01:31:16]} {[%emt 00:00:12]} 5. Bd3 {[%clk 01:31:03]} {[%emt 00:01:05]}
Nf6 {[%clk 01:31:09]} {[%emt 00:00:37]} 6. h3 {[%clk 01:30:47]} {[%emt
00:00:47]} c5 {[%clk 01:29:24]} {[%emt 00:02:16]} 7. c3 {[%clk 01:30:48]}
{[%emt 00:00:29]} Be7 {[%clk 01:28:17]} {[%emt 00:01:36]} 8. Nbd2 {[%clk
01:31:03]} {[%emt 00:00:15]} d6 {[%clk 01:24:43]} {[%emt 00:04:05]} 9. O-O
{[%clk 01:29:01]} {[%emt 00:02:32]} Nh5 {[%clk 01:23:13]} {[%emt 00:02:01]} 10.
Bh2 {[%clk 01:29:10]} {[%emt 00:00:21]} f5 {[%clk 01:23:32]} {[%emt 00:00:10]}
11. a4 {[%clk 01:20:41]} {[%emt 00:09:00]} c4 {[%clk 01:22:29]} {[%emt
00:01:33]} 12. Bc2 {[%clk 01:21:04]} {[%emt 00:00:07]} Nd7 {[%clk 01:18:41]}
{[%emt 00:04:17]} 13. e4 {[%clk 01:17:52]} {[%emt 00:03:42]} O-O {[%clk
01:09:11]} {[%emt 00:10:00]} 14. exf5 {[%clk 01:16:36]} {[%emt 00:01:47]} exf5
{[%clk 01:09:34]} {[%emt 00:00:06]} 15. Qe2 {[%clk 01:16:51]} {[%emt 00:00:15]}
Rf6 {[%clk 00:59:18]} {[%emt 00:10:46]} 16. Rfe1 {[%clk 01:07:11]} {[%emt
00:10:11]} Bf8 {[%clk 00:59:33]} {[%emt 00:00:15]} 17. b3 {[%clk 01:03:07]}
{[%emt 00:04:35]} Nb6 {[%clk 00:55:33]} {[%emt 00:04:29]} 18. bxc4 {[%clk
00:52:48]} {[%emt 00:10:49]} bxc4 {[%clk 00:54:18]} {[%emt 00:01:44]} 19. Ng5
{[%clk 00:50:31]} {[%emt 00:02:47]} Rg6 {[%clk 00:52:47]} {[%emt 00:02:01]} 20.
Ngf3 {[%clk 00:48:39]} {[%emt 00:02:22]} Rf6 {[%clk 00:50:16]} {[%emt
00:03:01]} 21. Rab1 {[%clk 00:39:32]} {[%emt 00:09:37]} Bd5 {[%clk 00:48:15]}
{[%emt 00:02:31]} 22. a5 {[%clk 00:39:25]} {[%emt 00:00:38]} Nc8 {[%clk
00:46:26]} {[%emt 00:02:18]} 23. Nxc4 {[%clk 00:39:14]} {[%emt 00:00:41]} Re6
{[%clk 00:42:22]} {[%emt 00:04:33]} 24. Qf1 {[%clk 00:38:03]} {[%emt 00:01:42]}
Rxe1 {[%clk 00:41:13]} {[%emt 00:01:39]} 25. Rxe1 {[%clk 00:36:07]} {[%emt
00:02:26]} Be4 {[%clk 00:36:19]} {[%emt 00:05:24]} 26. Bd3 {[%clk 00:33:12]}
{[%emt 00:03:24]} d5 {[%clk 00:23:27]} {[%emt 00:13:23]} 27. Nce5 {[%clk
00:32:32]} {[%emt 00:01:09]} Qxa5 {[%clk 00:23:43]} {[%emt 00:00:15]} 28. c4
{[%clk 00:32:36]} {[%emt 00:00:27]} Ne7 {[%clk 00:20:52]} {[%emt 00:03:19]} 29.
c5 {[%clk 00:30:18]} {[%emt 00:02:48]} Ng6 {[%clk 00:13:00]} {[%emt 00:08:22]}
30. Nxg6 {[%clk 00:19:07]} {[%emt 00:11:41]} hxg6 {[%clk 00:13:27]} {[%emt
00:00:03]} 31. Be5 {[%clk 00:19:20]} {[%emt 00:00:16]} Bxf3 {[%clk 00:07:13]}
{[%emt 00:06:44]} 32. gxf3 {[%clk 00:19:42]} {[%emt 00:00:08]} Nf6 {[%clk
00:07:41]} {[%emt 00:00:03]} 33. Rd1 {[%clk 00:13:20]} {[%emt 00:06:52]} Nd7
{[%clk 00:06:30]} {[%emt 00:01:40]} 34. Bf4 {[%clk 00:13:03]} {[%emt 00:00:47]}
Qa4 {[%clk 00:03:59]} {[%emt 00:03:02]} 35. Be3 {[%clk 00:08:52]} {[%emt
00:04:40]} 1-0